Workbook

Sheet 2022-2023
M2: Sunday | AD2: 7
K3: 2022 | M3: =K3+1 -> 2023 | O3: Work Calendar | AD3: Sunday
AE4: 2020
A6: NAME: | O6: Total Annual | T6: H | U6: Holidays
A7: LAST FOUR SSN XXX-XX- / EMPLOYEE ID | O7: Days: | Q7: 261 | T7: N | U7: Non-Work Day/Vacation Day
A8: WORK SITE: | U8: Student Recess Day
A9: JOB TITLE: | O9: Contract Work | U9: Work Day
O10: Days: | U10: Prof. Developmnet Day
U11: First/Last day of School
B13: 2022-07-01 | R13: 2023-01-01
B14: Su | C14: M | D14: Tu | E14: W | F14: Th | G14: F | H14: Sa | L14: r | R14: Su | S14: M | T14: Tu | U14: W | V14: Th | W14: F | X14: Sa
B15: 1900-01-26 | C15: 1900-01-27 | D15: 1900-01-28 | E15: 1900-01-29 | F15: 1900-01-30 | G15: 1900-01-01 | H15: 1900-01-02 | J15: Month Total | O15: =NETWORKDAYS(B13,EOMONTH(B13,0),0) -> 21 | R15: 1900-01-01 | S15: H | T15: 1900-01-03 | U15: 1900-01-04 | V15: 1900-01-05 | W15: 1900-01-06 | X15: 1900-01-07 | Z15: Month Total | AF15: =NETWORKDAYS(R13,EOMONTH(R13,0),0) -> 22 | AG15: 1
B16: 1900-01-03 | C16: H | D16: 1900-01-05 | E16: 1900-01-06 | F16: 1900-01-07 | G16: 1900-01-08 | H16: 1900-01-09 | J16: Year to Total | O16: =$O$15 -> 21 | R16: 1900-01-08 | S16: 1900-01-09 | T16: 1900-01-10 | U16: 1900-01-11 | V16: 1900-01-12 | W16: 1900-01-13 | X16: 1900-01-14 | Z16: Year to Total | AF16: =(O56+AF15) -> 153 | AG16: 2
B17: 1900-01-10 | C17: 1900-01-11 | D17: 1900-01-12 | E17: 1900-01-13 | F17: 1900-01-14 | G17: 1900-01-15 | H17: 1900-01-16 | J17: Holidays | O17: =COUNTIF(C15:H19,"H") -> 1 | R17: 1900-01-15 | S17: H | T17: 1900-01-17 | U17: 1900-01-18 | V17: 1900-01-19 | W17: 1900-01-20 | X17: 1900-01-21 | Z17: Holidays | AF17: =COUNTIF(R15:X20,"H") -> 2 | AG17: 3
B18: 1900-01-17 | C18: 1900-01-18 | D18: 1900-01-19 | E18: 1900-01-20 | F18: 1900-01-21 | G18: 1900-01-22 | H18: 1900-01-23 | J18: Non-Work Days | O18: =CountCcolor(B15:H20,$T$7) -> 0 | R18: 1900-01-22 | S18: 1900-01-23 | T18: 1900-01-24 | U18: 1900-01-25 | V18: 1900-01-26 | W18: 1900-01-27 | X18: 1900-01-28 | Z18: Non-Work Days | AF18: =CountCcolor(S15:Y20,$T$7) -> 0 | AG18: 4
B19: 1900-01-24 | C19: 1900-01-25 | D19: 1900-01-26 | E19: 1900-01-27 | F19: 1900-01-28 | G19: 1900-01-29 | H19: 1900-01-30 | J19: Service Days | O19: =O15-(O17+O18) -> 20 | R19: 1900-01-29 | S19: 1900-01-30 | T19: 1900-01-31 | U19: 1900-01-01 | V19: 1900-01-02 | W19: 1900-01-03 | X19: 1900-01-04 | Z19: Service Days | AF19: =AF15-(AF17+AF18) -> 20 | AG19: 5
B20: 1900-01-31 | C20: 1900-01-01 | D20: 1900-01-02 | E20: 1900-01-03 | F20: 1900-01-04 | G20: 1900-01-05 | H20: 1900-01-06 | R20: 1900-01-05 | S20: 1900-01-06 | T20: 1900-01-07 | U20: 1900-01-08 | V20: 1900-01-09 | W20: 1900-01-10 | X20: 1900-01-11 | AG20: 6
B21: 2022-08-01 | R21: 2023-02-01
B22: Su | C22: M | D22: Tu | E22: W | F22: Th | G22: F | H22: Sa | R22: Su | S22: M | T22: Tu | U22: W | V22: Th | W22: F | X22: Sa
B23: 1900-01-31 | C23: 1900-01-01 | D23: 1900-01-02 | E23: 1900-01-03 | F23: 1900-01-04 | G23: 1900-01-05 | H23: 1900-01-06 | J23: Month Total | O23: =NETWORKDAYS(B21,EOMONTH(B21,0),0) -> 23 | R23: 1900-01-29 | S23: 1900-01-30 | T23: 1900-01-31 | U23: 1900-01-01 | V23: 1900-01-02 | W23: 1900-01-03 | X23: 1900-01-04 | Z23: Month Total | AF23: =NETWORKDAYS(R21,EOMONTH(R21,0),0) -> 20
B24: 1900-01-07 | C24: 1900-01-08 | D24: 1900-01-09 | E24: 1900-01-10 | F24: 1900-01-11 | G24: 1900-01-12 | H24: 1900-01-13 | J24: Year to Total | O24: =(O16+O23) -> 44 | R24: 1900-01-05 | S24: 1900-01-06 | T24: 1900-01-07 | U24: 1900-01-08 | V24: 1900-01-09 | W24: 1900-01-10 | X24: 1900-01-11 | Z24: Year to Total | AF24: =(AF16+AF23) -> 173
B25: 1900-01-14 | C25: 1900-01-15 | D25: 1900-01-16 | E25: 1900-01-17 | F25: 1900-01-18 | G25: 1900-01-19 | H25: 1900-01-20 | J25: Holidays | O25: =COUNTIF(B23:G29,"H") -> 0 | R25: 1900-01-12 | S25: H | T25: 1900-01-14 | U25: 1900-01-15 | V25: 1900-01-16 | W25: 1900-01-17 | X25: 1900-01-18 | Z25: Holidays | AF25: =COUNTIF(R23:X28,"H") -> 2
B26: 1900-01-21 | C26: 1900-01-22 | D26: 1900-01-23 | E26: 1900-01-24 | F26: 1900-01-25 | G26: 1900-01-26 | H26: 1900-01-27 | J26: Non-Work Days | O26: =CountCcolor(B23:H28,$T$7) -> 0 | R26: 1900-01-19 | S26: H | T26: 1900-01-21 | U26: 1900-01-22 | V26: 1900-01-23 | W26: 1900-01-24 | X26: 1900-01-25 | Z26: Non-Work Days | AF26: =CountCcolor(S23:Y28,$T$7) -> 0
B27: 1900-01-28 | C27: 1900-01-29 | D27: 1900-01-30 | E27: 1900-01-31 | F27: 1900-01-01 | G27: 1900-01-02 | H27: 1900-01-03 | J27: Service Days | O27: =O23-(O25+O26) -> 23 | R27: 1900-01-26 | S27: 1900-01-27 | T27: 1900-01-28 | U27: 1900-01-01 | V27: 1900-01-02 | W27: 1900-01-03 | X27: 1900-01-04 | Z27: Service Days | AF27: =AF23-(AF25+AF26) -> 18
B28: 1900-01-04 | C28: 1900-01-05 | D28: 1900-01-06 | E28: 1900-01-07 | F28: 1900-01-08 | G28: 1900-01-09 | H28: 1900-01-10 | R28: 1900-01-05 | S28: 1900-01-06 | T28: 1900-01-07 | U28: 1900-01-08 | V28: 1900-01-09 | W28: 1900-01-10 | X28: 1900-01-11
B29: 2022-09-01 | R29: 2023-03-01
B30: Su | C30: M | D30: Tu | E30: W | F30: Th | G30: F | H30: Sa | R30: Su | S30: M | T30: Tu | U30: W | V30: Th | W30: F | X30: Sa
B31: 1900-01-28 | C31: 1900-01-29 | D31: 1900-01-30 | E31: 1900-01-31 | F31: 1900-01-01 | G31: 1900-01-02 | H31: 1900-01-03 | J31: Month Total | O31: =NETWORKDAYS(B29,EOMONTH(B29,0),0) -> 22 | R31: 1900-01-26 | S31: 1900-01-27 | T31: 1900-01-28 | U31: 1900-01-01 | V31: 1900-01-02 | W31: 1900-01-03 | X31: 1900-01-04 | Z31: Month Total | AF31: =NETWORKDAYS(R29,EOMONTH(R29,0),0) -> 23
B32: 1900-01-04 | C32: H | D32: 1900-01-06 | E32: 1900-01-07 | F32: 1900-01-08 | G32: 1900-01-09 | H32: 1900-01-10 | J32: Year to Total | O32: =(O24+O31) -> 66 | R32: 1900-01-05 | S32: 1900-01-06 | T32: 1900-01-07 | U32: 1900-01-08 | V32: 1900-01-09 | W32: 1900-01-10 | X32: 1900-01-11 | Z32: Year to Total | AF32: =(AF24+AF31) -> 196
B33: 1900-01-11 | C33: 1900-01-12 | D33: 1900-01-13 | E33: 1900-01-14 | F33: 1900-01-15 | G33: 1900-01-16 | H33: 1900-01-17 | J33: Holidays | O33: =COUNTIF(C31:H35,"H") -> 1 | R33: 1900-01-12 | S33: 1900-01-13 | T33: 1900-01-14 | U33: 1900-01-15 | V33: 1900-01-16 | W33: 1900-01-17 | X33: 1900-01-18 | Z33: Holidays | AF33: =COUNTIF(R31:X36,"H") -> 0
B34: 1900-01-18 | C34: 1900-01-19 | D34: 1900-01-20 | E34: 1900-01-21 | F34: 1900-01-22 | G34: 1900-01-23 | H34: 1900-01-24 | J34: Non-Work Days | O34: =CountCcolor(B31:H36,$T$7) -> 0 | R34: 1900-01-19 | S34: 1900-01-20 | T34: 1900-01-21 | U34: 1900-01-22 | V34: 1900-01-23 | W34: 1900-01-24 | X34: 1900-01-25 | Z34: Non-Work Days | AF34: =CountCcolor(S31:Y36,$T$7) -> 0
B35: 1900-01-25 | C35: 1900-01-26 | D35: 1900-01-27 | E35: 1900-01-28 | F35: 1900-01-29 | G35: 1900-01-30 | H35: 1900-01-01 | J35: Service Days | O35: =O31-(O33+O34) -> 21 | R35: 1900-01-26 | S35: 1900-01-27 | T35: 1900-01-28 | U35: 1900-01-29 | V35: 1900-01-30 | W35: 1900-01-31 | X35: 1900-01-01 | Z35: Service Days | AF35: =AF31-(AF33+AF34) -> 23
B36: 1900-01-02 | C36: 1900-01-03 | D36: 1900-01-04 | E36: 1900-01-05 | F36: 1900-01-06 | G36: 1900-01-07 | H36: 1900-01-08 | R36: 1900-01-02 | S36: 1900-01-03 | T36: 1900-01-04 | U36: 1900-01-05 | V36: 1900-01-06 | W36: 1900-01-07 | X36: 1900-01-08
B37: 2022-10-01 | R37: 2023-04-01
B38: Su | C38: M | D38: Tu | E38: W | F38: Th | G38: F | H38: Sa | R38: Su | S38: M | T38: Tu | U38: W | V38: Th | W38: F | X38: Sa
B39: 1900-01-25 | C39: 1900-01-26 | D39: 1900-01-27 | E39: 1900-01-28 | F39: 1900-01-29 | G39: 1900-01-30 | H39: 1900-01-01 | J39: Month Total | O39: =NETWORKDAYS(B37,EOMONTH(B37,0),0) -> 21 | R39: 1900-01-26 | S39: 1900-01-27 | T39: 1900-01-28 | U39: 1900-01-29 | V39: 1900-01-30 | W39: 1900-01-31 | X39: 1900-01-01 | Z39: Month Total | AF39: =NETWORKDAYS(R37,EOMONTH(R37,0),0) -> 20
B40: 1900-01-02 | C40: 1900-01-03 | D40: 1900-01-04 | E40: 1900-01-05 | F40: 1900-01-06 | G40: 1900-01-07 | H40: 1900-01-08 | J40: Year to Total | O40: =(O32+O39) -> 87 | R40: 1900-01-02 | S40: 1900-01-03 | T40: 1900-01-04 | U40: 1900-01-05 | V40: 1900-01-06 | W40: H | X40: 1900-01-08 | Z40: Year to Total | AF40: =(AF32+AF39) -> 216
B41: 1900-01-09 | C41: 1900-01-10 | D41: 1900-01-11 | E41: 1900-01-12 | F41: 1900-01-13 | G41: 1900-01-14 | H41: 1900-01-15 | J41: Holidays | O41: =COUNTIF(C39:H43,"H") -> 0 | R41: 1900-01-09 | S41: 1900-01-10 | T41: 1900-01-11 | U41: 1900-01-12 | V41: 1900-01-13 | W41: 1900-01-14 | X41: 1900-01-15 | Z41: Holidays | AF41: =COUNTIF(R39:X44,"H") -> 1
B42: 1900-01-16 | C42: 1900-01-17 | D42: 1900-01-18 | E42: 1900-01-19 | F42: 1900-01-20 | G42: 1900-01-21 | H42: 1900-01-22 | J42: Non-Work Days | O42: =CountCcolor(B39:H44,$T$7) -> 0 | R42: 1900-01-16 | S42: 1900-01-17 | T42: 1900-01-18 | U42: 1900-01-19 | V42: 1900-01-20 | W42: 1900-01-21 | X42: 1900-01-22 | Z42: Non-Work Days | AF42: =CountCcolor(S39:Y44,$T$7) -> 0
B43: 1900-01-23 | C43: 1900-01-24 | D43: 1900-01-25 | E43: 1900-01-26 | F43: 1900-01-27 | G43: 1900-01-28 | H43: 1900-01-29 | J43: Service Days | O43: =O39-(O41+O42) -> 21 | R43: 1900-01-23 | S43: 1900-01-24 | T43: 1900-01-25 | U43: 1900-01-26 | V43: 1900-01-27 | W43: 1900-01-28 | X43: 1900-01-29 | Z43: Service Days | AF43: =AF39-(AF41+AF42) -> 19
B44: 1900-01-30 | C44: 1900-01-31 | D44: 1900-01-01 | E44: 1900-01-02 | F44: 1900-01-03 | G44: 1900-01-04 | H44: 1900-01-05 | R44: 1900-01-30 | S44: 1900-01-01 | T44: 1900-01-02 | U44: 1900-01-03 | V44: 1900-01-04 | W44: 1900-01-05 | X44: 1900-01-06
B45: 2022-11-01 | R45: 2023-05-01
B46: Su | C46: M | D46: Tu | E46: W | F46: Th | G46: F | H46: Sa | R46: Su | S46: M | T46: Tu | U46: W | V46: Th | W46: F | X46: Sa
B47: 1900-01-30 | C47: 1900-01-31 | D47: 1900-01-01 | E47: 1900-01-02 | F47: 1900-01-03 | G47: 1900-01-04 | H47: 1900-01-05 | J47: Month Total | O47: =NETWORKDAYS(B45,EOMONTH(B45,0),0) -> 22 | R47: 1900-01-30 | S47: 1900-01-01 | T47: 1900-01-02 | U47: 1900-01-03 | V47: 1900-01-04 | W47: 1900-01-05 | X47: 1900-01-06 | Z47: Month Total | AF47: =NETWORKDAYS(R45,EOMONTH(R45,0),0) -> 23
B48: 1900-01-06 | C48: 1900-01-07 | D48: 1900-01-08 | E48: 1900-01-09 | F48: 1900-01-10 | G48: H | H48: 1900-01-12 | J48: Year to Total | O48: =(O40+O47) -> 109 | R48: 1900-01-07 | S48: 1900-01-08 | T48: 1900-01-09 | U48: 1900-01-10 | V48: 1900-01-11 | W48: 1900-01-12 | X48: 1900-01-13 | Z48: Year to Total | AF48: =(AF40+AF47) -> 239
B49: 1900-01-13 | C49: 1900-01-14 | D49: 1900-01-15 | E49: 1900-01-16 | F49: 1900-01-17 | G49: 1900-01-18 | H49: 1900-01-19 | J49: Holidays | O49: =COUNTIF(C47:H51,"H") -> 3 | R49: 1900-01-14 | S49: 1900-01-15 | T49: 1900-01-16 | U49: 1900-01-17 | V49: 1900-01-18 | W49: 1900-01-19 | X49: 1900-01-20 | Z49: Holidays | AF49: =COUNTIF(R47:X52,"H") -> 1
B50: 1900-01-20 | C50: 1900-01-21 | D50: 1900-01-22 | E50: 1900-01-23 | F50: H | G50: H | H50: 1900-01-26 | J50: Non-Work Days | O50: =CountCcolor(B47:H52,$T$7) -> 0 | R50: 1900-01-21 | S50: 1900-01-22 | T50: 1900-01-23 | U50: 1900-01-24 | V50: 1900-01-25 | W50: 1900-01-26 | X50: 1900-01-27 | Z50: Non-Work Days | AF50: =CountCcolor(S47:Y52,$T$7) -> 0
B51: 1900-01-27 | C51: 1900-01-28 | D51: 1900-01-29 | E51: 1900-01-30 | F51: 1900-01-01 | G51: 1900-01-02 | H51: 1900-01-03 | J51: Service Days | O51: =O47-(O49+O50) -> 19 | R51: 1900-01-28 | S51: H | T51: 1900-01-30 | U51: 1900-01-31 | V51: 1900-01-01 | W51: 1900-01-02 | X51: 1900-01-03 | Z51: Service Days | AF51: =AF47-(AF49+AF50) -> 22
B52: 1900-01-04 | C52: 1900-01-05 | D52: 1900-01-06 | E52: 1900-01-07 | F52: 1900-01-08 | G52: 1900-01-09 | H52: 1900-01-10 | R52: 1900-01-04 | S52: 1900-01-05 | T52: 1900-01-06 | U52: 1900-01-07 | V52: 1900-01-08 | W52: 1900-01-09 | X52: 1900-01-10
B53: 2022-12-01 | R53: 2023-06-01
B54: Su | C54: M | D54: Tu | E54: W | F54: Th | G54: F | H54: Sa | R54: Su | S54: M | T54: Tu | U54: W | V54: Th | W54: F | X54: Sa
B55: 1900-01-27 | C55: 1900-01-28 | D55: 1900-01-29 | E55: 1900-01-30 | F55: 1900-01-01 | G55: 1900-01-02 | H55: 1900-01-03 | J55: Month Total | O55: =NETWORKDAYS(B53,EOMONTH(B53,0),0) -> 22 | R55: 1900-01-28 | S55: 1900-01-29 | T55: 1900-01-30 | U55: 1900-01-31 | V55: 1900-01-01 | W55: 1900-01-02 | X55: 1900-01-03 | Z55: Month Total | AF55: =NETWORKDAYS(R53,EOMONTH(R53,0),0) -> 22
B56: 1900-01-04 | C56: 1900-01-05 | D56: 1900-01-06 | E56: 1900-01-07 | F56: 1900-01-08 | G56: 1900-01-09 | H56: 1900-01-10 | J56: Year to Total | O56: =(O48+O55) -> 131 | R56: 1900-01-04 | S56: 1900-01-05 | T56: 1900-01-06 | U56: 1900-01-07 | V56: 1900-01-08 | W56: 1900-01-09 | X56: 1900-01-10 | Z56: Year to Total | AF56: =(AF48+AF55) -> 261
B57: 1900-01-11 | C57: 1900-01-12 | D57: 1900-01-13 | E57: 1900-01-14 | F57: 1900-01-15 | G57: 1900-01-16 | H57: 1900-01-17 | J57: Holidays | O57: =COUNTIF(C55:H59,"H") -> 4 | R57: 1900-01-11 | S57: 1900-01-12 | T57: 1900-01-13 | U57: 1900-01-14 | V57: 1900-01-15 | W57: 1900-01-16 | X57: 1900-01-17 | Z57: Holidays | AF57: =COUNTIF(R55:X60,"H") -> 0
B58: 1900-01-18 | C58: 1900-01-19 | D58: 1900-01-20 | E58: 1900-01-21 | F58: 1900-01-22 | G58: H | H58: 1900-01-24 | J58: Non-Work Days | O58: =CountCcolor(B55:H60,$T$7) -> 0 | R58: 1900-01-18 | S58: 1900-01-19 | T58: 1900-01-20 | U58: 1900-01-21 | V58: 1900-01-22 | W58: 1900-01-23 | X58: 1900-01-24 | Z58: Non-Work Days | AF58: =CountCcolor(S55:Y60,$T$7) -> 0
B59: 1900-01-25 | C59: H | D59: 1900-01-27 | E59: 1900-01-28 | F59: H | G59: H | H59: 1900-01-31 | J59: Service Days | O59: =O55-(O57+O58) -> 18 | R59: 1900-01-25 | S59: 1900-01-26 | T59: 1900-01-27 | U59: 1900-01-28 | V59: 1900-01-29 | W59: 1900-01-30 | X59: 1900-01-01 | Z59: Service Days | AF59: =AF55-(AF57+AF58) -> 22
B60: 1900-01-01 | C60: 1900-01-02 | D60: 1900-01-03 | E60: 1900-01-04 | F60: 1900-01-05 | G60: 1900-01-06 | H60: 1900-01-07 | R60: 1900-01-02 | S60: 1900-01-03 | T60: 1900-01-04 | U60: 1900-01-05 | V60: 1900-01-06 | W60: 1900-01-07 | X60: 1900-01-08
C62: Employee's Signature | O62: (Date) | T62: Supervisor's Signature | AD62: (Date)
C63: Holidays: | G63: =O17+O25+O33+O41+O49+O57+AF17+AF25+AF33+AF41+AF49+AF57 -> 15 | K63: Non-Work/VAC Days: | R63: =(O18+O26+O34+O42+O50+O58+AF18+AF26+AF34+AF42+AF50+AF58) -> 0 | U63: Total Work Days: | AB63: =O19+O27+O35+O43+O51+O59+AF19+AF27+AF35+AF43+AF51+AF59 -> 246
N64: Revision Date:

Sheet Sheet1 (hidden)
A1: 2022 | B1: 7
A2: SUN | B2: MON | C2: TUE | D2: WED | E2: THU | F2: FRI | G2: SAT | R2: =IF(MONTH(WORKDAY.INTL(DATE($A$1,$B$1,0),ROW()-1,"1111100"))=$B$1,WORKDAY.INTL(DATE($A$1,$B$1,0),ROW()-1,"1111100"),"") -> 2022-07-02
A3: =_xlfn.SEQUENCE(6,7,DATE(A1,month,1)-WEEKDAY(DATE(A1,month,1))+1,1) -> 2022-06-26 | B3: 2022-06-27 | C3: 2022-06-28 | D3: 2022-06-29 | E3: 2022-06-30 | F3: 2022-07-01 | G3: 2022-07-02 | J3: =MOD(MONTH(A3),2) -> 0 | K3: =MOD(MONTH(B3),2) -> 0 | L3: 0 | M3: 0 | N3: 0 | O3: 1 | P3: 1 | R3: =IF(MONTH(WORKDAY.INTL(DATE($A$1,$B$1,0),ROW()-1,"1111100"))=$B$1,WORKDAY.INTL(DATE($A$1,$B$1,0),ROW()-1,"1111100"),"") -> 2022-07-03
A4: 2022-07-03 | B4: 2022-07-04 | C4: 2022-07-05 | D4: 2022-07-06 | E4: 2022-07-07 | F4: 2022-07-08 | G4: 2022-07-09 | J4: =MOD(MONTH(A4),2) -> 1 | K4: =MOD(MONTH(B4),2) -> 1 | L4: =MOD(MONTH(C4),2) -> 1 | M4: =MOD(MONTH(D4),2) -> 1 | N4: =MOD(MONTH(E4),2) -> 1 | O4: =MOD(MONTH(F4),2) -> 1 | P4: =MOD(MONTH(G4),2) -> 1 | R4: 2022-07-09
A5: 2022-07-10 | B5: 2022-07-11 | C5: 2022-07-12 | D5: 2022-07-13 | E5: 2022-07-14 | F5: 2022-07-15 | G5: 2022-07-16 | J5: 1 | K5: 1 | L5: 1 | M5: 1 | N5: 1 | O5: 1 | P5: 1 | R5: 2022-07-10
A6: 2022-07-17 | B6: 2022-07-18 | C6: 2022-07-19 | D6: 2022-07-20 | E6: 2022-07-21 | F6: 2022-07-22 | G6: 2022-07-23 | J6: 1 | K6: 1 | L6: 1 | M6: 1 | N6: 1 | O6: 1 | P6: 1 | R6: 2022-07-16
A7: 2022-07-24 | B7: 2022-07-25 | C7: 2022-07-26 | D7: 2022-07-27 | E7: 2022-07-28 | F7: 2022-07-29 | G7: 2022-07-30 | J7: 1 | K7: 1 | L7: 1 | M7: 1 | N7: 1 | O7: 1 | P7: 1 | R7: 2022-07-17
A8: 2022-07-31 | B8: 2022-08-01 | C8: 2022-08-02 | D8: 2022-08-03 | E8: 2022-08-04 | F8: 2022-08-05 | G8: 2022-08-06 | J8: 1 | K8: 0 | L8: 0 | M8: 0 | N8: 0 | O8: 0 | P8: 0 | R8: 2022-07-23
R9: 2022-07-24
A10: =_xlfn.SEQUENCE(6,7,DATE(A1,(month+1),1)-WEEKDAY(DATE(A1,month+1,1))+1,1) -> 2022-07-31 | B10: 2022-08-01 | C10: 2022-08-02 | D10: 2022-08-03 | E10: 2022-08-04 | F10: 2022-08-05 | G10: 2022-08-06 | J10: =MOD(MONTH(A10)-1,2) -> 0 | K10: =MOD(MONTH(B10)-1,2) -> 1 | L10: 1 | M10: 1 | N10: 1 | O10: 1 | P10: 1 | R10: 2022-07-30
A11: 2022-08-07 | B11: 2022-08-08 | C11: 2022-08-09 | D11: 2022-08-10 | E11: 2022-08-11 | F11: 2022-08-12 | G11: 2022-08-13 | J11: =MOD(MONTH(A11)-1,2) -> 1 | K11: =MOD(MONTH(B11)-1,2) -> 1 | L11: =MOD(MONTH(C11)-1,2) -> 1 | M11: =MOD(MONTH(D11)-1,2) -> 1 | N11: =MOD(MONTH(E11)-1,2) -> 1 | O11: =MOD(MONTH(F11)-1,2) -> 1 | P11: =MOD(MONTH(G11)-1,2) -> 1 | R11: 2022-07-31
A12: 2022-08-14 | B12: 2022-08-15 | C12: 2022-08-16 | D12: 2022-08-17 | E12: 2022-08-18 | F12: 2022-08-19 | G12: 2022-08-20 | J12: 1 | K12: 1 | L12: 1 | M12: 1 | N12: 1 | O12: 1 | P12: 1
A13: 2022-08-21 | B13: 2022-08-22 | C13: 2022-08-23 | D13: 2022-08-24 | E13: 2022-08-25 | F13: 2022-08-26 | G13: 2022-08-27 | J13: 1 | K13: 1 | L13: 1 | M13: 1 | N13: 1 | O13: 1 | P13: 1
A14: 2022-08-28 | B14: 2022-08-29 | C14: 2022-08-30 | D14: 2022-08-31 | E14: 2022-09-01 | F14: 2022-09-02 | G14: 2022-09-03 | J14: 1 | K14: 1 | L14: 1 | M14: 1 | N14: 0 | O14: 0 | P14: 0
A15: 2022-09-04 | B15: 2022-09-05 | C15: 2022-09-06 | D15: 2022-09-07 | E15: 2022-09-08 | F15: 2022-09-09 | G15: 2022-09-10 | J15: 0 | K15: 0 | L15: 0 | M15: 0 | N15: 0 | O15: 0 | P15: 0
A17: =_xlfn.SEQUENCE(6,7,DATE(A1,(month+2),1)-WEEKDAY(DATE(A1,month+2,1))+1,1) -> 2022-08-28 | B17: 2022-08-29 | C17: 2022-08-30 | D17: 2022-08-31 | E17: 2022-09-01 | F17: 2022-09-02 | G17: 2022-09-03 | J17: 0 | K17: 0 | L17: 0 | M17: 0 | N17: 1 | O17: 1 | P17: 1
A18: 2022-09-04 | B18: 2022-09-05 | C18: 2022-09-06 | D18: 2022-09-07 | E18: 2022-09-08 | F18: 2022-09-09 | G18: 2022-09-10 | J18: 1 | K18: 1 | L18: 1 | M18: 1 | N18: 1 | O18: 1 | P18: 1
A19: 2022-09-11 | B19: 2022-09-12 | C19: 2022-09-13 | D19: 2022-09-14 | E19: 2022-09-15 | F19: 2022-09-16 | G19: 2022-09-17 | J19: 1 | K19: 1 | L19: 1 | M19: 1 | N19: 1 | O19: 1 | P19: 1
A20: 2022-09-18 | B20: 2022-09-19 | C20: 2022-09-20 | D20: 2022-09-21 | E20: 2022-09-22 | F20: 2022-09-23 | G20: 2022-09-24 | J20: 1 | K20: 1 | L20: 1 | M20: 1 | N20: 1 | O20: 1 | P20: 1
A21: 2022-09-25 | B21: 2022-09-26 | C21: 2022-09-27 | D21: 2022-09-28 | E21: 2022-09-29 | F21: 2022-09-30 | G21: 2022-10-01 | J21: 1 | K21: 1 | L21: 1 | M21: 1 | N21: 1 | O21: 1 | P21: 0
A22: 2022-10-02 | B22: 2022-10-03 | C22: 2022-10-04 | D22: 2022-10-05 | E22: 2022-10-06 | F22: 2022-10-07 | G22: 2022-10-08 | J22: 0 | K22: 0 | L22: 0 | M22: 0 | N22: 0 | O22: 0 | P22: 0
J23: 1 | K23: 1 | L23: 1 | M23: 1 | N23: 1 | O23: 1 | P23: 1
A24: =_xlfn.SEQUENCE(6,7,DATE(A1,(month+3),1)-WEEKDAY(DATE(A1,month+3,1))+1,1) -> 2022-09-25 | B24: 2022-09-26 | C24: 2022-09-27 | D24: 2022-09-28 | E24: 2022-09-29 | F24: 2022-09-30 | G24: 2022-10-01 | J24: 1 | K24: 1 | L24: 1 | M24: 1 | N24: 1 | O24: 1 | P24: 0
A25: 2022-10-02 | B25: 2022-10-03 | C25: 2022-10-04 | D25: 2022-10-05 | E25: 2022-10-06 | F25: 2022-10-07 | G25: 2022-10-08 | J25: 0 | K25: 0 | L25: 0 | M25: 0 | N25: 0 | O25: 0 | P25: 0
A26: 2022-10-09 | B26: 2022-10-10 | C26: 2022-10-11 | D26: 2022-10-12 | E26: 2022-10-13 | F26: 2022-10-14 | G26: 2022-10-15 | J26: 0 | K26: 0 | L26: 0 | M26: 0 | N26: 0 | O26: 0 | P26: 0
A27: 2022-10-16 | B27: 2022-10-17 | C27: 2022-10-18 | D27: 2022-10-19 | E27: 2022-10-20 | F27: 2022-10-21 | G27: 2022-10-22
A28: 2022-10-23 | B28: 2022-10-24 | C28: 2022-10-25 | D28: 2022-10-26 | E28: 2022-10-27 | F28: 2022-10-28 | G28: 2022-10-29 | R28: =WORKDAY.INTL(DATE($A$1,$B$1,0),ROW()-1,"1111100") -> 2022-10-01
A29: 2022-10-30 | B29: 2022-10-31 | C29: 2022-11-01 | D29: 2022-11-02 | E29: 2022-11-03 | F29: 2022-11-04 | G29: 2022-11-05 | J29: =WORKDAY.INTL("07-01-2022",0) -> 2022-07-01 | R29: 2022-10-02
J30: =IF(MONTH(WORKDAY.INTL(DATE($A$1,$B$1,0),ROW()-4,"1111100"))=$B$1,WORKDAY.INTL(DATE($A$1,$B$1,0),ROW()-4,"1111100"),"") ->  | R30: 2022-10-08
A31: =_xlfn.SEQUENCE(6,7,DATE(A1,(month+4),1)-WEEKDAY(DATE(A1,month+4,1))+1,1) -> 2022-10-30 | B31: 2022-10-31 | C31: 2022-11-01 | D31: 2022-11-02 | E31: 2022-11-03 | F31: 2022-11-04 | G31: 2022-11-05 | R31: 2022-10-09
A32: 2022-11-06 | B32: 2022-11-07 | C32: 2022-11-08 | D32: 2022-11-09 | E32: 2022-11-10 | F32: 2022-11-11 | G32: 2022-11-12 | R32: 2022-10-15
A33: 2022-11-13 | B33: 2022-11-14 | C33: 2022-11-15 | D33: 2022-11-16 | E33: 2022-11-17 | F33: 2022-11-18 | G33: 2022-11-19 | R33: 2022-10-16
A34: 2022-11-20 | B34: 2022-11-21 | C34: 2022-11-22 | D34: 2022-11-23 | E34: 2022-11-24 | F34: 2022-11-25 | G34: 2022-11-26
A35: 2022-11-27 | B35: 2022-11-28 | C35: 2022-11-29 | D35: 2022-11-30 | E35: 2022-12-01 | F35: 2022-12-02 | G35: 2022-12-03
A36: 2022-12-04 | B36: 2022-12-05 | C36: 2022-12-06 | D36: 2022-12-07 | E36: 2022-12-08 | F36: 2022-12-09 | G36: 2022-12-10
A38: =_xlfn.SEQUENCE(6,7,DATE(A1,(month+5),1)-WEEKDAY(DATE(A1,month+5,1))+1,1) -> 2022-11-27 | B38: 2022-11-28 | C38: 2022-11-29 | D38: 2022-11-30 | E38: 2022-12-01 | F38: 2022-12-02 | G38: 2022-12-03
A39: 2022-12-04 | B39: 2022-12-05 | C39: 2022-12-06 | D39: 2022-12-07 | E39: 2022-12-08 | F39: 2022-12-09 | G39: 2022-12-10
A40: 2022-12-11 | B40: 2022-12-12 | C40: 2022-12-13 | D40: 2022-12-14 | E40: 2022-12-15 | F40: 2022-12-16 | G40: 2022-12-17
A41: 2022-12-18 | B41: 2022-12-19 | C41: 2022-12-20 | D41: 2022-12-21 | E41: 2022-12-22 | F41: 2022-12-23 | G41: 2022-12-24
A42: 2022-12-25 | B42: 2022-12-26 | C42: 2022-12-27 | D42: 2022-12-28 | E42: 2022-12-29 | F42: 2022-12-30 | G42: 2022-12-31
A43: 2023-01-01 | B43: 2023-01-02 | C43: 2023-01-03 | D43: 2023-01-04 | E43: 2023-01-05 | F43: 2023-01-06 | G43: 2023-01-07
A45: =_xlfn.SEQUENCE(6,7,DATE(A1,(month+6),1)-WEEKDAY(DATE(A1,month+6,1))+1,1) -> 2023-01-01 | B45: 2023-01-02 | C45: 2023-01-03 | D45: 2023-01-04 | E45: 2023-01-05 | F45: 2023-01-06 | G45: 2023-01-07
A46: 2023-01-08 | B46: 2023-01-09 | C46: 2023-01-10 | D46: 2023-01-11 | E46: 2023-01-12 | F46: 2023-01-13 | G46: 2023-01-14
A47: 2023-01-15 | B47: 2023-01-16 | C47: 2023-01-17 | D47: 2023-01-18 | E47: 2023-01-19 | F47: 2023-01-20 | G47: 2023-01-21
A48: 2023-01-22 | B48: 2023-01-23 | C48: 2023-01-24 | D48: 2023-01-25 | E48: 2023-01-26 | F48: 2023-01-27 | G48: 2023-01-28
A49: 2023-01-29 | B49: 2023-01-30 | C49: 2023-01-31 | D49: 2023-02-01 | E49: 2023-02-02 | F49: 2023-02-03 | G49: 2023-02-04
A50: 2023-02-05 | B50: 2023-02-06 | C50: 2023-02-07 | D50: 2023-02-08 | E50: 2023-02-09 | F50: 2023-02-10 | G50: 2023-02-11
A52: =_xlfn.SEQUENCE(6,7,DATE(A1,(month+7),1)-WEEKDAY(DATE(A1,month+7,1))+1,1) -> 2023-01-29 | B52: 2023-01-30 | C52: 2023-01-31 | D52: 2023-02-01 | E52: 2023-02-02 | F52: 2023-02-03 | G52: 2023-02-04
A53: 2023-02-05 | B53: 2023-02-06 | C53: 2023-02-07 | D53: 2023-02-08 | E53: 2023-02-09 | F53: 2023-02-10 | G53: 2023-02-11
A54: 2023-02-12 | B54: 2023-02-13 | C54: 2023-02-14 | D54: 2023-02-15 | E54: 2023-02-16 | F54: 2023-02-17 | G54: 2023-02-18
A55: 2023-02-19 | B55: 2023-02-20 | C55: 2023-02-21 | D55: 2023-02-22 | E55: 2023-02-23 | F55: 2023-02-24 | G55: 2023-02-25
A56: 2023-02-26 | B56: 2023-02-27 | C56: 2023-02-28 | D56: 2023-03-01 | E56: 2023-03-02 | F56: 2023-03-03 | G56: 2023-03-04
A57: 2023-03-05 | B57: 2023-03-06 | C57: 2023-03-07 | D57: 2023-03-08 | E57: 2023-03-09 | F57: 2023-03-10 | G57: 2023-03-11
A59: =_xlfn.SEQUENCE(6,7,DATE(A1,(month+8),1)-WEEKDAY(DATE(A1,month+8,1))+1,1) -> 2023-02-26 | B59: 2023-02-27 | C59: 2023-02-28 | D59: 2023-03-01 | E59: 2023-03-02 | F59: 2023-03-03 | G59: 2023-03-04
A60: 2023-03-05 | B60: 2023-03-06 | C60: 2023-03-07 | D60: 2023-03-08 | E60: 2023-03-09 | F60: 2023-03-10 | G60: 2023-03-11
A61: 2023-03-12 | B61: 2023-03-13 | C61: 2023-03-14 | D61: 2023-03-15 | E61: 2023-03-16 | F61: 2023-03-17 | G61: 2023-03-18
A62: 2023-03-19 | B62: 2023-03-20 | C62: 2023-03-21 | D62: 2023-03-22 | E62: 2023-03-23 | F62: 2023-03-24 | G62: 2023-03-25
A63: 2023-03-26 | B63: 2023-03-27 | C63: 2023-03-28 | D63: 2023-03-29 | E63: 2023-03-30 | F63: 2023-03-31 | G63: 2023-04-01
A64: 2023-04-02 | B64: 2023-04-03 | C64: 2023-04-04 | D64: 2023-04-05 | E64: 2023-04-06 | F64: 2023-04-07 | G64: 2023-04-08
A66: =_xlfn.SEQUENCE(6,7,DATE(A1,(month+9),1)-WEEKDAY(DATE(A1,month+9,1))+1,1) -> 2023-03-26 | B66: 2023-03-27 | C66: 2023-03-28 | D66: 2023-03-29 | E66: 2023-03-30 | F66: 2023-03-31 | G66: 2023-04-01
A67: 2023-04-02 | B67: 2023-04-03 | C67: 2023-04-04 | D67: 2023-04-05 | E67: 2023-04-06 | F67: 2023-04-07 | G67: 2023-04-08
A68: 2023-04-09 | B68: 2023-04-10 | C68: 2023-04-11 | D68: 2023-04-12 | E68: 2023-04-13 | F68: 2023-04-14 | G68: 2023-04-15
A69: 2023-04-16 | B69: 2023-04-17 | C69: 2023-04-18 | D69: 2023-04-19 | E69: 2023-04-20 | F69: 2023-04-21 | G69: 2023-04-22
A70: 2023-04-23 | B70: 2023-04-24 | C70: 2023-04-25 | D70: 2023-04-26 | E70: 2023-04-27 | F70: 2023-04-28 | G70: 2023-04-29
A71: 2023-04-30 | B71: 2023-05-01 | C71: 2023-05-02 | D71: 2023-05-03 | E71: 2023-05-04 | F71: 2023-05-05 | G71: 2023-05-06
A73: =_xlfn.SEQUENCE(6,7,DATE(A1,(month+10),1)-WEEKDAY(DATE(A1,month+10,1))+1,1) -> 2023-04-30 | B73: 2023-05-01 | C73: 2023-05-02 | D73: 2023-05-03 | E73: 2023-05-04 | F73: 2023-05-05 | G73: 2023-05-06
A74: 2023-05-07 | B74: 2023-05-08 | C74: 2023-05-09 | D74: 2023-05-10 | E74: 2023-05-11 | F74: 2023-05-12 | G74: 2023-05-13
A75: 2023-05-14 | B75: 2023-05-15 | C75: 2023-05-16 | D75: 2023-05-17 | E75: 2023-05-18 | F75: 2023-05-19 | G75: 2023-05-20
A76: 2023-05-21 | B76: 2023-05-22 | C76: 2023-05-23 | D76: 2023-05-24 | E76: 2023-05-25 | F76: 2023-05-26 | G76: 2023-05-27
A77: 2023-05-28 | B77: 2023-05-29 | C77: 2023-05-30 | D77: 2023-05-31 | E77: 2023-06-01 | F77: 2023-06-02 | G77: 2023-06-03
A78: 2023-06-04 | B78: 2023-06-05 | C78: 2023-06-06 | D78: 2023-06-07 | E78: 2023-06-08 | F78: 2023-06-09 | G78: 2023-06-10
A80: =_xlfn.SEQUENCE(6,7,DATE(A1,(month+11),1)-WEEKDAY(DATE(A1,month+11,1))+1,1) -> 2023-05-28 | B80: 2023-05-29 | C80: 2023-05-30 | D80: 2023-05-31 | E80: 2023-06-01 | F80: 2023-06-02 | G80: 2023-06-03
A81: 2023-06-04 | B81: 2023-06-05 | C81: 2023-06-06 | D81: 2023-06-07 | E81: 2023-06-08 | F81: 2023-06-09 | G81: 2023-06-10
A82: 2023-06-11 | B82: 2023-06-12 | C82: 2023-06-13 | D82: 2023-06-14 | E82: 2023-06-15 | F82: 2023-06-16 | G82: 2023-06-17
A83: 2023-06-18 | B83: 2023-06-19 | C83: 2023-06-20 | D83: 2023-06-21 | E83: 2023-06-22 | F83: 2023-06-23 | G83: 2023-06-24
A84: 2023-06-25 | B84: 2023-06-26 | C84: 2023-06-27 | D84: 2023-06-28 | E84: 2023-06-29 | F84: 2023-06-30 | G84: 2023-07-01
A85: 2023-07-02 | B85: 2023-07-03 | C85: 2023-07-04 | D85: 2023-07-05 | E85: 2023-07-06 | F85: 2023-07-07 | G85: 2023-07-08
